Cogmind - Beta 15 @@@ ROGUE MODE // 2025.06.11 @ 02:40:52 Player: CheifClapdad Result: Destroyed by Y-45 Defender with Beam Rifle Performance ------------- Evolutions (1) 500 Regions Visited (2) 400 Robots Destroyed (27) 135 Value Destroyed (564) 564 Prototype IDs (2) 40 Alien Tech Used (0) 0 Bonus (244) 244 TOTAL SCORE: 1883 Bonus ------- Pacifist 200 High Alert Combat Kills 44 Cogmind --------- Core Integrity 0/400 Matter 29/300 Energy 30/100 System Corruption 1% Temperature Cool (27) Movement Treading (170) Location -9/Materials Parts ------- > --- POWER (1) -------- (None) > --- PROPULSION (4) --- Armored Treads Armored Treads Armored Treads Armored Treads > --- UTILITY (2) ------ Small Storage Unit > --- WEAPON (2) ------- Advanced Beam Rifle Advanced Beam Rifle > --- INVENTORY (8) ---- Light Ion Engine Improved Ion Engine Transport Network Coupler EMP Blaster Plasma Cutter Peak State ------------ > --- POWER ------------ (None) > --- PROPULSION ------- Armored Treads Armored Treads Armored Treads Armored Treads > --- UTILITY ---------- Small Storage Unit > --- WEAPON ----------- Advanced Beam Rifle Advanced Beam Rifle > --- INVENTORY -------- Light Ion Engine Improved Ion Engine Transport Network Coupler EMP Blaster Plasma Cutter [Rating: 21] Favorites ----------- Power Ion Engine Engine Ion Engine Propulsion Improved Hover Unit Treads Armored Treads Wheel Wheel Hover Unit Improved Hover Unit Utility Small Storage Unit Device Shield Generator Storage Small Storage Unit Weapon Assault Rifle Energy Gun Small Laser Ballistic Gun Assault Rifle Launcher EMP Blaster Build | -11 -10 -9 ------- Run | Yrd Mat Mat Slots Evolved 2 | . . 2 Power . | . . . Propulsion 2 | . . 2 Utility . | . . . Weapon . | . . . Parts Attached 26 | 3 4 19 Power 2 | 1 . 1 Engine 2 | 1 . 1 Core . | . . . Reactor . | . . . Propulsion 13 | 1 2 10 Treads 4 | . . 4 Leg . | . . . Wheel 1 | 1 . . Hover 8 | . 2 6 Flight . | . . . Utility 2 | 1 . 1 Device 1 | . . 1 Storage 1 | 1 . . Processor . | . . . Hackware . | . . . Protection . | . . . Artifact . | . . . Weapon 9 | . 2 7 Energy Gun 3 | . 1 2 Energy Cannon . | . . . Ballistic Gun 4 | . 1 3 Ballistic Cannon . | . . . Launcher 2 | . . 2 Special Weapon . | . . . Impact Weapon . | . . . Slashing Weapon . | . . . Piercing Weapon . | . . . Special Melee Weapon . | . . . Unidentified Prototypes 2 | . . 2 Parts Lost 13 | . . 13 Power 1 | . . 1 Propulsion 8 | . . 8 Utility 1 | . . 1 Weapon 3 | . . 3 Highest Loss Streak 4 | . . 4 To Critical Strikes . | . . . Average Backups 6 | 3 6 6 Power 1 | . 1 1 Propulsion 2 | 1 4 2 Utility . | . . . Weapon 1 | 1 1 1 Tool/Special . | . . . Unused Backups 8 | . 4 4 Power 2 | . . 2 Propulsion 3 | . 3 . Utility 1 | . . 1 Weapon 1 | . 1 . Tool/Special 1 | . . 1 Average Slot Usage (%) 73 | . 75 73 Engine 9 | . 14 8 Treads 3 | . . 4 Wheel 1 | . 5 . Hover 25 | . 16 28 Device 2 | . . 3 Storage 11 | . 14 11 Energy Gun 4 | . 12 2 Ballistic Gun 12 | . 11 12 Launcher 1 | . . 1 Peak Build Rating 21 | 3 9 21 Average Rating 10 | 2 7 12 On Entrance 4 | . 3 9 Naked Turns . | . . . Heaviest Build 19 | 10 13 19 Greatest Support 80 | 10 14 80 Greatest Overweight (x) 1 | . 1 1 Average Overweight (x) . | . . . Largest Inventory Capacity 8 | 8 8 8 Average Capacity 7 | 6 8 8 Most Carried 8 | 7 8 8 Average Carried 6 | 3 6 6 Final Capacity 8 | 8 8 8 Final Carried 8 | 7 8 5 Class Distribution -------------------- 100% | Mutant Dominant Class ---------------- Mutant | -10/Materials Mutant | -9/Materials Resources | -11 -10 -9 ----------- Run | Yrd Mat Mat Matter Collected 353 | 195 . 158 Remotely . | . . . Salvage Created 523 | . . 523 Parts 56 | . . 56 Haulers Intercepted 1 | . . 1 Recyclers Shooed . | . . . Parts Field Recycled . | . . . Retrieved Matter . | . . . Parts Self-Destructed . | . . . Prevented . | . . . Kills | -11 -10 -9 ------- Run | Yrd Mat Mat Combat Hostiles Destroyed 18 | . . 18 Guns 9 | . . 9 AOE 9 | . . 9 Classes Destroyed 7 | . . 7 Worker 4 | . . 4 Builder 2 | . . 2 Tunneler 2 | . . 2 Hauler 1 | . . 1 Swarmer 11 | . . 11 Grunt 1 | . . 1 Sentry 6 | . . 6 Best Kill Streak 12 | . . 12 Combat Bots Only 5 | . . 5 Max Kills in Single Turn 8 | . . 8 Gunslinging . | . . . Exploded 5 | . . 5 Melee . | . . . Uniques/NPCs Destroyed . | . . . Combat | -11 -10 -9 -------- Run | Yrd Mat Mat Hostile Shots Fired 165 | . 8 157 Missed 69 | . 4 65 Hits 96 | . 4 92 Projectile 96 | . 4 92 Critical Strikes 2 | . . 2 Damage Taken 1339 | . 46 1293 Core 414 | . . 414 Absorbed by Shields 79 | . . 79 Core Remaining (%) 100 | 100 100 . Volleys Fired 67 | . 3 64 Largest 2 | . 2 2 Hottest 122 | . 60 122 Shots Fired 93 | . 5 88 Gun 89 | . 5 84 Cannon . | . . . Launcher 4 | . . 4 Special . | . . . Kinetic 83 | . 3 80 Thermal 6 | . 2 4 Explosive . | . . . Electromagnetic 4 | . . 4 Robot Hit Streak 9 | . 3 9 Robot Miss Streak 4 | . 1 4 Penetration Max . | . . . Secondary Targets 1 | . . 1 Max Gunslinging Chain 1 | . . 1 Shots Hit Robots 55 | . 3 52 Core Hits 37 | . 1 36 Critical Kills . | . . . Critical Parts Destroyed . | . . . Critical Strikes 1 | . . 1 Burn 1 | . . 1 Melee Attacks . | . . . Impact . | . . . Slashing . | . . . Piercing . | . . . Sneak Attacks . | . . . Combat Hostiles . | . . . Follow-up Attacks . | . . . Damage Inflicted 2222 | . 44 2178 Guns 615 | . 40 575 Cannons . | . . . Explosions 1603 | . . 1603 Melee . | . . . Ramming 4 | . 4 . Kinetic 544 | . 29 515 Thermal 927 | . 11 916 Explosive 550 | . . 550 Electromagnetic 197 | . . 197 Impact . | . . . Slashing . | . . . Piercing . | . . . Highest Corruption 1 | . . 1 Average Corruption 1 | . . 1 Corruption Purged . | . . . Corruption Blocked . | . . . Effects 1 | . . 1 Matter Fused 1 | . . 1 Overload Shots . | . . . Overflow Damage 356 | . . 356 Projectiles . | . . . Explosions 356 | . . 356 Melee . | . . . Knockbacks . | . . . Impact . | . . . Kinetic . | . . . Secondary . | . . . Self-Inflicted Damage 208 | . 1 207 Shots 6 | . . 6 Rammed 2 | . 2 . Targets Rammed 2 | . 2 . Kicked . | . . . Crushed . | . . . Highest Temperature 259 | . . 259 Average Temperature 72 | . . 72 Received Heat Transfer 270 | . 24 246 Siege Activations . | . . . Martial Activations . | . . . Shielding Activations . | . . . Robots Disrupted . | . . . Combat Hostiles . | . . . Robots Corrupted . | . . . Combat Hostiles . | . . . Parts Fried . | . . . Impact Corruptions . | . . . Robots Melted . | . . . Combat Hostiles . | . . . Parts Melted . | . . . Heat Transferred 860 | . 25 835 Parts Sabotaged . | . . . Parts Stolen . | . . . Parts Stripped . | . . . Power Chain Reactions 3 | . . 3 Alert | -11 -10 -9 ------- Run | Yrd Mat Mat Maximum Alert Level 2 | . . 2 Low Security (%) 66 | 100 100 53 Level 1 1 | . . 1 Level 2 32 | . . 45 Level 3 . | . . . Level 4 . | . . . Level 5 . | . . . High Security . | . . . Max Security . | . . . Peak Influence 500 | . . 500 Initial . | . . . Average 184 | . . 260 Influence Increases 802 | . . 802 Destroy 0b10 Robot/C 360 | . . 360 Destroy 0b10 Robot/NC 45 | . . 45 Destroy Leader 92 | . . 92 Disable Machine 180 | . . 180 Destroy Structure 65 | . . 65 Partial Spotted 30 | . . 30 Lose Combat Pursuer 30 | . . 30 Influence Decreases 326 | . . 326 Time Decay 196 | . . 196 Lost Part 130 | . . 130 Squads Dispatched 3 | . 2 1 Investigation 1 | . 1 . Extermination . | . . . Reinforcement 1 | . 1 . Assault 1 | . . 1 Garrison . | . . . Intercept . | . . . Searches Triggered . | . . . Construction Impeded . | . . . Haulers Reinforced . | . . . Active Scanning Responses . | . . . Cargo Convoy Interrupts . | . . . Stealth | -11 -10 -9 --------- Run | Yrd Mat Mat Distress Signals 2 | . . 2 Communications Jammed . | . . . Distress Signals . | . . . Times Spotted 29 | . 6 23 Peak Tracking Total 8 | . 5 8 Tactical Retreats 2 | . . 2 Traps | -11 -10 -9 ------- Run | Yrd Mat Mat Traps Triggered 1 | . 1 . Indirectly . | . . . Trap Hack Attempts . | . . . Triggered . | . . . Disarmed . | . . . Reprogrammed . | . . . Reused . | . . . Traps Extracted . | . . . Installed . | . . . Triggered . | . . . Machines | -11 -10 -9 ---------- Run | Yrd Mat Mat Machines Disabled 12 | . . 12 Max in Single Turn 10 | . . 10 Machines Repaired . | . . . Machines Dismantled . | . . . Machines Sabotaged . | . . . Overloaded Fab Kills . | . . . Hacking | -11 -10 -9 --------- Run | Yrd Mat Mat Machines Accessed . | . . . Terminals . | . . . Fabricators . | . . . Repair Stations . | . . . Recycling Units . | . . . Scanalyzers . | . . . Garrison Access . | . . . Total Hacks . | . . . Successful . | . . . Failed . | . . . Catastrophic . | . . . Database Lockouts . | . . . Manual . | . . . Terminals . | . . . Fabricators . | . . . Repair Stations . | . . . Recycling Units . | . . . Scanalyzers . | . . . Garrison Access . | . . . Terminal Hacks . | . . . Fabricator Hacks . | . . . Repair Station Hacks . | . . . Recycling Unit Hacks . | . . . Scanalyzer . | . . . Garrison Access Hacks . | . . . Unauthorized Hacks . | . . . Terminals . | . . . Fabricators . | . . . Repair Stations . | . . . Recycling Units . | . . . Scanalyzers . | . . . Garrison Access . | . . . Data Cores Recovered . | . . . Used . | . . . Hacking Detections . | . . . Full Trace Events . | . . . Feedback Events . | . . . Feedback Blocked . | . . . Robot Schematics Acquired . | . . . Robots Built . | . . . Authchips . | . . . Time . | . . . Total Robot Build Rating . | . . . Part Schematics Acquired . | . . . Parts Built . | . . . Authchips . | . . . Time . | . . . Total Part Build Rating . | . . . Parts Repaired . | . . . Time . | . . . Parts Recycled . | . . . Recycled Matter . | . . . Retrieved Matter . | . . . Retrieved Components . | . . . Parts Scanalyzed . | . . . Part Schematics Acquired . | . . . Parts Damaged . | . . . Bothacking | -11 -10 -9 ------------ Run | Yrd Mat Mat Used RIF Installer . | . . . Robots Hacked . | . . . Non-combat . | . . . Combat . | . . . Robot Hacks Applied . | . . . Relay Couplers Released . | . . . Fabnet Peak Effective % . | . . . Robots Rewired . | . . . Allies Hacked . | . . . Hacks Repelled . | . . . Allies | -11 -10 -9 -------- Run | Yrd Mat Mat Total Allies . | . . . Largest Group . | . . . Highest-Rated Group . | . . . Highest-Rated Ally . | . . . Total Orders . | . . . Ally Attacks . | . . . Total Damage . | . . . Kills . | . . . Allies Corrupted . | . . . Allies Melted . | . . . Intel | -11 -10 -9 ------- Run | Yrd Mat Mat Active Infowar (turns) . | . . . Robot Analysis Total . | . . . Derelict Logs Recovered . | . . . Drone Launches . | . . . Drone Recoveries . | . . . Exploration | -11 -10 -9 ------------- Run | Yrd Mat Mat Turns Passed 593 | 61 112 420 Spaces Moved 570 | 69 128 373 Core 40 | 17 . 23 Treads 19 | . . 19 Legs . | . . . Wheels 86 | 52 34 . Hover 425 | . 94 331 Flight . | . . . Fastest Speed 48 | 50 56 48 Average Speed 64 | 72 65 61 Slowest Speed 170 | 80 125 170 Overloaded Moves . | . . . Propulsion Burnouts . | . . . Robots Hopped . | . . . Potential Cave-ins . | . . . Cave-ins Triggered . | . . . Exploration Rate (%) 18 | 4 23 28 Regions Visited 2 Branch Regions . Pre-discovered Areas . | . . . Known Exits Taken . | . . . Unknown Exits Taken 2 | 1 1 . Scrap Searched . | . . . Spaces Dug . | . . . Terrain Destroyed 62 | . . 62 Melee . | . . . Projectile . | . . . AOE 62 | . . 62 Terrain Rammed . | . . . Walls Destroyed . | . . . Machines Disabled . | . . . Actions | -11 -10 -9 --------- Run | Yrd Mat Mat Total 707 | 78 152 477 Wait 10 | . 4 6 Move 569 | 68 128 373 Hop . | . . . Pick Up 20 | 7 7 6 Fast Attach 13 | 3 2 8 Attach 11 | . 2 9 Detach 1 | . . 1 Swap 6 | . . 6 Drop 9 | . 5 4 Fire 67 | . 3 64 Melee . | . . . Ram 1 | . 1 . Kick . | . . . Crush . | . . . Escape Stasis . | . . . Rewire . | . . . Trap . | . . . Miscellaneous . | . . . Route ------- -11/Scrapyard -10/Materials -9/Materials History --------- Turn | Location | Event 2 | -11/Scrapyard | Met Revision 17 4 | -11/Scrapyard | Discovered new exit (range 16) 62 | -11/Scrapyard | Entered Materials 159 | -10/Materials | Discovered new exit (range 13) 174 | -10/Materials | Entered another Materials area 174 | -9/Materials | Evolved 2 slots: Propulsion x2 311 | -9/Materials | Build established: Mutant 374 | -9/Materials | Lost 3 parts (2n1u) 470 | -9/Materials | Lost 3 parts (3n) 512 | -9/Materials | Core integrity fell below 50% 524 | -9/Materials | Core integrity fell below 20% 549 | -9/Materials | Lost 4 parts (1p2n1w) 574 | -9/Materials | First assault squad dispatched 594 | -9/Materials | Destroyed by Y-45 Defender with Beam Rifle Last Messages --------------- 00518_ Destroyed Imp. Hover Unit. 00518_ K-01 Serf destroyed. 00544_ Acquired Arm. Treads. 00557_ Acquired Prototype Energy Gun. 00557_ Identified Adv. Beam Rifle. 00560_ Acquired Adv. Beam Rifle. 00569_ Y-45 Defender suffers critical hit (Burn). 00569_ Y-45 Defender destroyed. 00574_ ALERT: Unidentified disturbance in Zone 3X, assault force dispatched. 00582_ U-05 Engineer lays Concrete. 00582_ Acquired 29 matter. 00583_ U-05 Engineer lays Concrete. 00585_ U-05 Engineer builds a Door. 00585_ K-01 Serf collects debris. 00590_ U-05 Engineer lays Concrete. 00591_ System corrupted: Matter fused (-7). 00591_ U-05 Engineer lays Concrete. 00594_ Critical hit (Burn: +37). Map ----- +----------------------------------------------------+ | """ """ #???# # # #????????????????? | | #???######### ######????????????????? | | ##?????????# #????????????????????? | | """ """ +?????????# ! #????????????????????? | | """ """ ##???? """ / #????????????????????? | | """ """ #??? S" # ! #????????????????????? | | ???"" # #????????????????????? | | "???"" ?#######????????????????????? | | "" ""??"" ????????????????????????????? | | "#?? ?????????????????????????????? | | "########?????????????????????????????? | | ????????????????????????????????????? | | ????????????????????????????????????? | | #????????????????????????????????????? | | #????????????????????????????????????? | | = "??????????########???????????????????? | | #??????????#!![[ #???????????????????? | | ##?????????#!! #???????????????????? | | "#?????????# #???????? ##????????? | | "########### ###### #????????? | | ! #????????? | | ^ !% +????????? | | ^ ! = #????????? | | ""+######"####### ######### #????????? | | % # #???# #?????????#####????????? | | # #???#@#??????????????????????? | | [ # # """ #???# #??????????????????????? | | = # # """ #???# ##########?????????????? | | *! # # """ ]#???# # #?????????????? | | # # #####Y# ! #?????????????? | | # # ############### ; % ! #?????????????? | | #######???# !#= * #?????????????? | | ??????????# T!%+= ! #?????????????? | | ??????????# [# #?????????????? | | ??????????? ####### # #?????????????? | | ????????????????????####### #?????????????? | | ??????????????????????????# #?????????????? | | ??????????????????????????##########?????????????? | | ?????????????????????????????????????????????????? | | ?????????????????????????????????????????????????? | | ?????????????????????????????????????????????????? | | ?????????????????????????????????????????????????? | | ?????????????????????????????????????????????????? | | ?????????????????????????????????????????????????? | | ?????????????????????????????????????????????????? | | ?????????????????????????????????????????????????? | | ?????????????????????????????????????????????????? | | ?????????????????????????????????????????????????? | | ?????????????????????????????????????????????????? | | ?????????????????????????????????????????????????? | +----------------------------------------------------+ Best States ------------- Heat Dissipation 28 Energy Generation 10 Energy Capacity 250 Matter Stores 255 Matter Capacity 300 Sight Range 16 Terrain Scan Density 10 Evasion (%) 55 Recoil Reduction 4 Item Schematics ----------------- None Robot Schematics ------------------ None Fabricated ------------ Nothing Repaired ---------- Nothing Alien Tech Used ----------------- None Achievements -------------- None Challenges ------------ None Game ------ Seed GuidedScrapWand Manual? 0 Play Time 00:10:37 Cumulative 71.3 hours Start 2025.06.11 @ 02:32:02 End 2025.06.11 @ 02:40:52 Sessions 1 Manual Loads 0 Difficulty Rogue Special Mode None Game No. 94 Rogue 94 Adventurer 0 Explorer 0 Win Type - Total 1 Types 1/0/0/0/0/0/0/0/0/0 Lore% 32 Gallery% 45 Achievement% 39 Wizard Run 0 Options --------- Layout 1 ASCII 0 Keyboard 0 Movement Arrows Keybinds 0 Fullscreen 1 Font 24/Smallcaps Map View 50x35 Zoom Use 0% Tactical HUD 1 Map Filters NONE Filters NONE Steam X RUN: e52d817e-3a4d-450a-8f49-9d8561676025